Cogmind - Beta 14 @@@ ROGUE MODE // 2024.09.03 @ 15:24:58 Player: star Result: Destroyed by G-47 Trooper with Particle Gun Performance ------------- Evolutions (0) 0 Regions Visited (3) 600 Robots Destroyed (11) 55 Value Destroyed (280) 280 Prototype IDs (0) 0 Alien Tech Used (0) 0 Bonus (0) 0 TOTAL SCORE: 935 Bonus ------- None Cogmind --------- Core Integrity 0/250 Matter 208/300 Energy 44/100 System Corruption 2% Temperature Cool (9) Movement Core (700) Ox13 Location -7/Recycling Parts ------- > --- POWER (1) -------- Subdweller Power Source > --- PROPULSION (2) --- (None) > --- UTILITY (2) ------ Heat Sink Large Storage Unit > --- WEAPON (2) ------- Subdweller Beam Cannon Slug Cannon > --- INVENTORY (15) --- Spiked Treads Subdweller Monowheel Subdweller Monowheel Small Storage Unit Medium Storage Unit Subdweller Laser Subdweller Laser Peak State ------------ > --- POWER ------------ Subdweller Power Source > --- PROPULSION ------- Subdweller Monowheel Subdweller Monowheel > --- UTILITY ---------- Heat Sink Large Storage Unit > --- WEAPON ----------- Subdweller Beam Cannon Slug Cannon > --- INVENTORY -------- Spiked Treads Subdweller Monowheel Subdweller Monowheel Small Storage Unit Medium Storage Unit Subdweller Laser Subdweller Laser [Rating: 15] Favorites ----------- Power Ion Engine Engine Ion Engine Propulsion Subdweller Monowheel Treads Spiked Treads Wheel Subdweller Monowheel Utility Large Storage Unit Device Heat Sink Storage Large Storage Unit Weapon Light Assault Rifle Energy Gun Subdweller Laser Energy Cannon Subdweller Beam Cannon Ballistic Gun Light Assault Rifle Ballistic Cannon Slug Cannon Special Weapon Multitool Build | -11 -10 -10 -7 ------- Run | Yrd Mat Sub Rec Slots Evolved . | . . . . Power . | . . . . Propulsion . | . . . . Utility . | . . . . Weapon . | . . . . Parts Attached 19 | 6 2 9 2 Power 2 | 1 . 1 . Engine 2 | 1 . 1 . Core . | . . . . Reactor . | . . . . Propulsion 6 | 2 . 4 . Treads 1 | . . 1 . Leg . | . . . . Wheel 5 | 2 . 3 . Hover . | . . . . Flight . | . . . . Utility 4 | 1 2 . 1 Device 1 | . . . 1 Storage 3 | 1 2 . . Processor . | . . . . Hackware . | . . . . Protection . | . . . . Artifact . | . . . . Weapon 7 | 2 . 4 1 Energy Gun 2 | . . 2 . Energy Cannon 1 | . . 1 . Ballistic Gun 2 | 2 . . . Ballistic Cannon 1 | . . . 1 Launcher . | . . . . Special Weapon 1 | . . 1 . Impact Weapon . | . . . . Slashing Weapon . | . . . . Piercing Weapon . | . . . . Special Melee Weapon . | . . . . Unidentified Prototypes . | . . . . Parts Lost 8 | . . 6 2 Power 1 | . . 1 . Propulsion 4 | . . 2 2 Utility . | . . . . Weapon 3 | . . 3 . Highest Loss Streak 4 | . . 4 2 To Critical Strikes . | . . . . Average Slot Usage (%) 77 | . 98 69 85 Engine 6 | . 14 3 14 Treads 3 | . . 5 . Wheel 18 | . 28 15 14 Storage 27 | . 26 28 14 Energy Gun 5 | . . 7 . Energy Cannon 5 | . . 7 14 Ballistic Gun 9 | . 28 2 . Peak Build Rating 15 | 6 7 13 15 Average Rating 7 | 4 6 7 12 On Entrance 6 | . 6 7 13 Naked Turns . | . . . . Heaviest Build 47 | 12 37 47 47 Greatest Support 40 | 26 26 40 20 Greatest Overweight (x) 11 | . 1 11 2 Average Overweight (x) 1 | . . 1 2 Largest Inventory Capacity 15 | 8 15 15 15 Average Capacity 14 | 6 14 15 15 Most Carried 8 | . 1 8 7 Average Carried 3 | . . 4 7 Final Capacity 15 | 8 15 15 15 Final Carried 7 | . 1 7 7 Class Distribution -------------------- 100% | Mutant Dominant Class ---------------- Mutant | -10/Materials Mutant | -10/Subcaves Mutant | -7/Recycling Resources | -11 -10 -10 -7 ----------- Run | Yrd Mat Sub Rec Matter Collected 390 | 260 60 70 . Remotely . | . . . . Salvage Created 328 | . 217 47 64 Parts 16 | . 9 5 2 Haulers Intercepted 1 | . 1 . . Recyclers Shooed . | . . . . Parts Field Recycled . | . . . . Retrieved Matter . | . . . . Parts Self-Destructed 8 | . . 8 . Prevented . | . . . . Kills | -11 -10 -10 -7 ------- Run | Yrd Mat Sub Rec Combat Hostiles Destroyed 10 | . 6 2 2 Guns 7 | . 6 1 . Cannons 3 | . . 1 2 Classes Destroyed 6 | . 3 1 2 Hauler 1 | . 1 . . Swarmer 4 | . 3 1 . Grunt 3 | . 3 . . Protector 1 | . . . 1 Programmer 1 | . . . 1 Subdweller 1 | . . 1 . Best Kill Streak 4 | . 4 1 2 Combat Bots Only 4 | . 4 1 2 Max Kills in Single Turn 1 | . 1 1 1 Gunslinging . | . . . . Exploded . | . . . . Melee . | . . . . Uniques/NPCs Destroyed . | . . . . Combat | -11 -10 -10 -7 -------- Run | Yrd Mat Sub Rec Hostile Shots Fired 174 | . 16 131 27 Missed 63 | . 6 50 7 Damage Taken 1097 | . 122 678 297 Core 265 | . 46 163 56 Absorbed by Shields . | . . . . Core Remaining (%) 100 | 100 . . . Volleys Fired 51 | . 20 19 12 Largest 2 | . 2 2 2 Hottest 140 | . 40 140 128 Shots Fired 91 | . 40 36 15 Gun 63 | . 40 23 . Cannon 28 | . . 13 15 Launcher . | . . . . Special . | . . . . Kinetic 60 | . 40 8 12 Thermal 31 | . . 28 3 Explosive . | . . . . Electromagnetic . | . . . . Robot Hit Streak 16 | . 16 6 2 Robot Miss Streak 5 | . 1 2 5 Penetration Max . | . . . . Secondary Targets 1 | . . 1 . Max Gunslinging Chain 1 | . . 1 . Shots Hit Robots 46 | . 33 7 6 Core Hits 14 | . 11 2 1 Critical Kills 1 | . . . 1 Critical Parts Destroyed 2 | . 2 . . Critical Strikes 3 | . 2 . 1 Destroy 3 | . 2 . 1 Melee Attacks . | . . . . Impact . | . . . . Slashing . | . . . . Piercing . | . . . . Sneak Attacks . | . . . . Combat Hostiles . | . . . . Follow-up Attacks . | . . . . Damage Inflicted 643 | . 283 69 291 Guns 320 | . 277 43 . Cannons 317 | . . 26 291 Explosions . | . . . . Melee . | . . . . Ramming 6 | . 6 . . Kinetic 551 | . 277 43 231 Thermal 86 | . . 26 60 Explosive . | . . . . Electromagnetic . | . . . . Impact . | . . . . Slashing . | . . . . Piercing . | . . . . Highest Corruption 2 | . . . 2 Average Corruption 1 | . . . 1 Corruption Purged . | . . . . Corruption Blocked . | . . . . Overload Shots . | . . . . Overflow Damage 23 | . . . 23 Projectiles 23 | . . . 23 Explosions . | . . . . Melee . | . . . . Knockbacks 1 | . . . 1 Impact . | . . . . Kinetic 1 | . . . 1 Secondary . | . . . . Self-Inflicted Damage 3 | . 3 . . Shots . | . . . . Rammed 1 | . 1 . . Targets Rammed 1 | . 1 . . Kicked . | . . . . Crushed . | . . . . Highest Temperature 63 | . 12 36 63 Average Temperature 13 | . 7 7 33 Received Heat Transfer 411 | . 48 354 9 Siege Activations . | . . . . Robots Corrupted . | . . . . Combat Hostiles . | . . . . Parts Fried . | . . . . Impact Corruptions . | . . . . Robots Melted . | . . . . Combat Hostiles . | . . . . Parts Melted . | . . . . Heat Transferred 75 | . . 37 38 Parts Sabotaged . | . . . . Parts Stolen . | . . . . Parts Stripped . | . . . . Power Chain Reactions . | . . . . Alert | -11 -10 -10 -7 ------- Run | Yrd Mat Sub Rec Peak Influence 262 | . 262 . 28 Initial . | . . . . Average 134 | . 153 . 9 Maximum Alert Level 1 | . 1 . . Low Security (%) 58 | 100 51 . 100 Level 1 41 | . 48 . . Level 2 . | . . . . Level 3 . | . . . . Level 4 . | . . . . Level 5 . | . . . . High Security . | . . . . Max Security . | . . . . Squads Dispatched 3 | . 3 . . Investigation 1 | . 1 . . Extermination . | . . . . Reinforcement 2 | . 2 . . Assault . | . . . . Garrison . | . . . . Intercept . | . . . . Searches Triggered . | . . . . Construction Impeded . | . . . . Haulers Reinforced . | . . . . Active Scanning Responses . | . . . . Cargo Convoy Interrupts . | . . . . Stealth | -11 -10 -10 -7 --------- Run | Yrd Mat Sub Rec Distress Signals 2 | . 2 . . Communications Jammed . | . . . . Distress Signals . | . . . . Times Spotted 29 | . 12 13 4 Peak Tracking Total 7 | . 5 7 4 Tactical Retreats 7 | . 2 5 . Traps | -11 -10 -10 -7 ------- Run | Yrd Mat Sub Rec Traps Triggered 2 | . 1 1 . Indirectly . | . . . . Trap Hack Attempts . | . . . . Triggered . | . . . . Disarmed . | . . . . Reprogrammed . | . . . . Reused . | . . . . Traps Extracted . | . . . . Installed . | . . . . Triggered . | . . . . Machines | -11 -10 -10 -7 ---------- Run | Yrd Mat Sub Rec Machines Disabled . | . . . . Max in Single Turn . | . . . . Machines Repaired . | . . . . Machines Dismantled . | . . . . Machines Sabotaged . | . . . . Overloaded Fab Kills . | . . . . Hacking | -11 -10 -10 -7 --------- Run | Yrd Mat Sub Rec Machines Accessed . | . . . . Terminals . | . . . . Fabricators . | . . . . Repair Stations . | . . . . Recycling Units . | . . . . Scanalyzers . | . . . . Garrison Access . | . . . . Total Hacks . | . . . . Successful . | . . . . Failed . | . . . . Catastrophic . | . . . . Database Lockouts . | . . . . Manual . | . . . . Terminals . | . . . . Fabricators . | . . . . Repair Stations . | . . . . Recycling Units . | . . . . Scanalyzers . | . . . . Garrison Access . | . . . . Terminal Hacks . | . . . . Fabricator Hacks . | . . . . Repair Station Hacks . | . . . . Recycling Unit Hacks . | . . . . Scanalyzer . | . . . . Garrison Access Hacks . | . . . . Unauthorized Hacks . | . . . . Terminals . | . . . . Fabricators . | . . . . Repair Stations . | . . . . Recycling Units . | . . . . Scanalyzers . | . . . . Garrison Access . | . . . . Data Cores Recovered . | . . . . Used . | . . . . Hacking Detections . | . . . . Full Trace Events . | . . . . Feedback Events . | . . . . Feedback Blocked . | . . . . Robot Schematics Acquired . | . . . . Robots Built . | . . . . Authchips . | . . . . Time . | . . . . Total Robot Build Rating . | . . . . Part Schematics Acquired . | . . . . Parts Built . | . . . . Authchips . | . . . . Time . | . . . . Total Part Build Rating . | . . . . Parts Repaired . | . . . . Time . | . . . . Parts Recycled . | . . . . Recycled Matter . | . . . . Retrieved Matter . | . . . . Retrieved Components . | . . . . Parts Scanalyzed . | . . . . Part Schematics Acquired . | . . . . Parts Damaged . | . . . . Bothacking | -11 -10 -10 -7 ------------ Run | Yrd Mat Sub Rec Used RIF Installer . | . . . . Robots Hacked . | . . . . Non-combat . | . . . . Combat . | . . . . Robot Hacks Applied . | . . . . Relay Couplers Released . | . . . . Fabnet Peak Effective % . | . . . . Robots Rewired . | . . . . Allies Hacked . | . . . . Hacks Repelled . | . . . . Allies | -11 -10 -10 -7 -------- Run | Yrd Mat Sub Rec Total Allies . | . . . . Largest Group . | . . . . Highest-Rated Group . | . . . . Highest-Rated Ally . | . . . . Total Orders . | . . . . Ally Attacks . | . . . . Total Damage . | . . . . Kills . | . . . . Allies Corrupted . | . . . . Allies Melted . | . . . . Intel | -11 -10 -10 -7 ------- Run | Yrd Mat Sub Rec Robot Analysis Total . | . . . . Derelict Logs Recovered . | . . . . Drone Launches . | . . . . Drone Recoveries . | . . . . Exploration | -11 -10 -10 -7 ------------- Run | Yrd Mat Sub Rec Turns Passed 1814 | 38 489 1252 35 Spaces Moved 905 | 34 241 625 5 Core 41 | 3 . 38 . Treads 84 | . . 84 . Legs . | . . . . Wheels 780 | 31 241 503 5 Hover . | . . . . Flight . | . . . . Fastest Speed 50 | 50 90 105 130 Average Speed 144 | 87 101 165 130 Slowest Speed 600 | 100 105 600 130 Overloaded Moves . | . . . . Propulsion Burnouts . | . . . . Robots Hopped . | . . . . Cave-ins Triggered . | . . . . Exploration Rate (%) 22 | 3 43 37 5 Regions Visited 3 Branch Regions 2 Pre-discovered Areas . | . . . . Known Exits Taken . | . . . . Unknown Exits Taken 3 | 1 1 1 . Scrap Searched 5 | . . 5 . Spaces Dug . | . . . . Terrain Destroyed 8 | . . 2 6 Melee . | . . . . Projectile 8 | . . 2 6 AOE . | . . . . Terrain Rammed . | . . . . Walls Destroyed . | . . . . Machines Disabled . | . . . . Actions | -11 -10 -10 -7 --------- Run | Yrd Mat Sub Rec Total 1316 | 39 453 805 19 Wait 336 | . 190 146 . Move 902 | 33 240 624 5 Hop . | . . . . Pick Up 7 | . . 7 . Fast Attach 10 | 6 1 3 . Attach 3 | . . 3 . Detach . | . . . . Swap 6 | . 1 3 2 Drop . | . . . . Fire 51 | . 20 19 12 Melee . | . . . . Ram 1 | . 1 . . Kick . | . . . . Crush . | . . . . Escape Stasis . | . . . . Rewire . | . . . . Trap . | . . . . Miscellaneous . | . . . . Route ------- -11/Scrapyard -10/Materials (discovered 3 exits: [*Mat] / [*Min] / [*Sub]) -10/Subcaves -7/Recycling History --------- Turn | Location | Event 10 | -11/Scrapyard | Discovered new exit (range 13) 39 | -11/Scrapyard | Entered Materials 67 | -10/Materials | Discovered new exit (range 11) 180 | -10/Materials | Discovered new exit (range 15) 308 | -10/Materials | Build established: Mutant 511 | -10/Materials | Discovered new exit (range 4) 528 | -10/Materials | Entered Subcaves 572 | -10/Subcaves | Discovered new exit (range 14) 610 | -10/Subcaves | Lost 4 parts (1p2n1w) 652 | -10/Subcaves | Core integrity fell below 50% 1120 | -10/Subcaves | Shifting Twisted Machinery released Sub. Beam Cannon 1128 | -10/Subcaves | Shifting Twisted Machinery released Sub. Laser 1626 | -10/Subcaves | Core integrity fell below 20% 1780 | -10/Subcaves | Entered Recycling 1815 | -7/Recycling | Destroyed by G-47 Trooper with Particle Gun Last Messages --------------- 01278_ Acquired Spk. Treads. 01285_ Acquired Heat Sink. 01625_ Triggered Piercing Trap. 01625_ Spikes shoot up from the floor. 01625_ Critical hit (Impale). 01674_ Sub. Monowheel shoots sparks and powers down. 01779_ Sub. Power Source shoots sparks and powers down. LOCATION=UNKNOWN GOAL=ESCAPE 01786_ S-27 Virus springs to life. 01786_ P-60 Hacker springs to life. 01786_ I-36 Angel springs to life. 01793_ S-27 Virus knocked back. 01796_ Sub. Monowheel destroyed. 01803_ Broken Sub. Monowheel destroyed. 01803_ Destroyed Shock Rifle. 01803_ P-60 Hacker destroyed. 01805_ I-36 Angel suffers critical hit (Destroy). 01805_ I-36 Angel destroyed. 01813_ U-05 Engineer builds a Wall. Map ----- +----------------------------------------------------+ | | | ?????????????????????????????????????????????????? | | ?????????????????????????????????????????????????? | | ?????????????????????????????????????????????????? | | ?????????????????????????????????????????????????? | | ?????????????????????????????????????????????????? | | ?????????????????????????????????????????????????? | | ?????????????????????????????????????????????????? | | ?????????????????????????????????????????????????? | | ?????????????????????????????????????????????????? | | ?????????????????????????????????????????????????? | | ?????????????????????????????????????????????????? | | ?????????????????????????????????????????????????? | | ?????????????????????????????????????????????????? | | ?????????????????????????????????????????????????? | | ?????????????????????????????????????????????????? | | ?????????????????????????????????????????????????? | | ?????????????????????????????????????????????????? | | ?????????????????????????????????????????????????? | | ?????????????????????????????????????????????????? | | ????????????????????????#####????????????????????? | | ???????????????#######??# #????????????????????? | | ???????????????# g !?# #????????????????????? | | ???????????????#% g ?# #????????????????????? | | ???????????????# # #????????????????????? | | ???????????????+! Y Y ;@ #????????????????????? | | ???????????????# ! s%! ; ???????????????? | | ???????????????# * usr%=% # r??????????? | | ???????????????#hu = % # ; ? ##?????????? | | ???????????????#k r u# + ?? #??????????? | | ???????????????#! g !# ####???####??????????? | | ???????????????##+####### #????????????????????? | | ????????????????#???##??# #????????????????????? | | ????????????????????????# #????????????????????? | | ????????????????????????# #????????????????????? | | ????????????????????????? #????????????????????? | | ????????????????????????? +????????????????????? | | ?????????????????????????g #????????????????????? | | ????????????????????????? +????????????????????? | | ????????????????????????? #????????????????????? | | ????????????????????????? ?????????????????????? | | ?????????????????????????????????????????????????? | | ?????????????????????????????????????????????????? | | ?????????????????????????????????????????????????? | | ?????????????????????????????????????????????????? | | ?????????????????????????????????????????????????? | | ?????????????????????????????????????????????????? | | ?????????????????????????????????????????????????? | | ?????????????????????????????????????????????????? | | ?????????????????????????????????????????????????? | +----------------------------------------------------+ Best States ------------- Heat Dissipation 35 Energy Generation 15 Energy Capacity 250 Matter Stores 300 Matter Capacity 300 Sight Range 16 Terrain Scan Density 10 Evasion (%) 42 Recoil Reduction 1 Item Schematics ----------------- None Robot Schematics ------------------ None Fabricated ------------ Nothing Alien Tech Used ----------------- None Achievements -------------- None Challenges ------------ None Game ------ Seed MicroEnergySpoofer Manual? 0 Play Time 00:09:48 Cumulative 69.1 hours Start 2024.09.03 @ 15:16:03 End 2024.09.03 @ 15:24:58 Sessions 1 Manual Loads 0 Difficulty Rogue Special Mode None Game No. 126 Rogue 126 Adventurer 0 Explorer 0 Win Type - Total 0 Types 0/0/0/0/0/0/0/0/0 Lore% 32 Gallery% 45 Achievement% 37 Wizard Run 0 Options --------- Layout 0 ASCII 0 Keyboard 0 Movement Numpad Keybinds 0 Fullscreen 2 Font 18/SmallcapsGlow Map View 76x50 Zoom Use 0% Tactical HUD 1 Map Filters NONE Filters NONE Steam 1 RUN: 27c8f885-3cd9-4b55-b9cf-7a03a1510f18